fUSD/lending_fUSD_20260305
["ID","MTS","AMOUNT","RATE_DAILY","PERIOD"]
[407749745,1772746245151,-500.0,0.00019999,2]
[407749746,1772746245162,-500.0,0.00019999,2]
[407749747,1772746245171,-500.0,0.00019999,2]
[407749748,1772746245182,-500.0,0.00019999,2]
[407749749,1772746245191,-500.0,0.00019999,2]
[407749750,1772746245200,-500.0,0.00019999,2]
[407749751,1772746245211,-500.0,0.00019999,2]
[407749752,1772746245220,-500.0,0.00019999,2]
[407749753,1772746245231,-500.0,0.00019999,2]
[407749754,1772746245247,-236.30247842,0.00019999,2]
[407749755,1772746245259,-500.0,0.00019999,2]
[407749756,1772746245268,-500.0,0.00019999,2]
[407749757,1772746245277,-500.0,0.00019999,2]
[407749758,1772746245289,-494.09872212,0.00019999,2]
[407749759,1772746245298,-513.77,0.00019999,2]
[407749760,1772746245308,-513.77,0.00019999,2]
[407749761,1772746245319,-513.77,0.00019999,2]
[407749762,1772746245328,-513.77,0.00019999,2]
[407749763,1772746245338,-513.77,0.00019999,2]
[407749764,1772746245348,-513.77,0.00019999,2]
[407749765,1772746245358,-513.77,0.00019999,2]
[407749766,1772746245369,-513.77,0.00019999,2]
[407749767,1772746245378,-513.77,0.00019999,2]
[407749768,1772746245387,-513.77,0.00019999,2]
[407749769,1772746245397,-513.77,0.00019999,2]
[407749770,1772746245407,-513.77,0.00019999,2]
[407749771,1772746245416,-513.77,0.00019999,2]
[407749772,1772746245426,-513.77,0.00019999,2]
[407749773,1772746245435,-513.90629648,0.00019999,2]
[407749774,1772746245444,-500.0,0.00019999,2]
[407749775,1772746245454,-500.0,0.00019999,2]
[407749776,1772746245463,-500.0,0.00019999,2]
[407749777,1772746245472,-500.0,0.00019999,2]
[407749778,1772746245482,-500.0,0.00019999,2]
[407749779,1772746245492,-500.0,0.00019999,2]
[407749780,1772746245501,-500.0,0.00019999,2]
[407749781,1772746245510,-500.0,0.00019999,2]
[407749782,1772746245519,-500.0,0.00019999,2]
[407749783,1772746245529,-500.0,0.00019999,2]
[407749784,1772746245538,-539.61,0.00019999,2]
[407749785,1772746245548,-500.0,0.00019999,2]
[407749786,1772746245557,-500.0,0.00019999,2]
[407749787,1772746245566,-162.5481671,0.00019999,2]
[407749788,1772746245575,-255.94966854,0.00019999,2]
[407749789,1772746245584,-6840792.50488463,0.0002,2]
[407749798,1772746246735,-174.95420241,0.00019735,2]
[407749799,1772746246745,-7745.22509484,0.0002,2]
[407749800,1772746246889,-151.0,0.00017919,2]
[407749801,1772746246898,-151.0,0.0001792,2]
[407749802,1772746246908,-310.0,0.000191,2]
[407749803,1772746246917,-7868.26340176,0.0002,2]
[407749804,1772746246928,-26192.13826252,0.0002,2]
[407749805,1772746246939,-18277.36244985,0.0002,2]
[407749806,1772746246950,-3576.04888317,0.0002,2]
[407749807,1772746246961,-208113.92749397,0.0002,2]
[407749808,1772746246971,-382.71781999,0.0002,2]
[407749809,1772746246986,-4321.4757446,0.0002,2]
[407749814,1772746335611,500.0,0.00012,2]
[407749815,1772746335990,500.0,0.00012,2]
[407749816,1772746336098,500.0,0.00011291,2]
[407749817,1772746338222,501.65192009,0.00012,2]
[407749818,1772746338557,500.0,0.00012,2]
[407749819,1772746338679,500.0,0.00012,2]
[407749820,1772746338714,501.95803175,0.00012,2]
[407749821,1772746339056,500.0,0.00012,2]
[407749822,1772746339175,500.0,0.00011291,2]
[407749823,1772746339330,500.0,0.00012,2]
[407749824,1772746339551,500.0,0.00012,2]
[407749825,1772746339842,767.50936039,0.00011291,2]
[407749826,1772746340094,500.0,0.00012,2]
[407749827,1772746340612,500.0,0.00011291,2]
[407749828,1772746341111,500.0,0.00011291,2]
[407749829,1772746341644,500.0,0.00011291,2]
[407749830,1772746342928,500.0,0.00012,2]
[407749831,1772746346177,500.0,0.00012,2]
[407749832,1772746346843,500.0,0.00012,2]
[407749833,1772746347940,500.0,0.00012,2]
[407749834,1772746348865,500.0,0.00012,2]
[407749836,1772746562998,510.0,0.00014,2]
[407749838,1772746747242,1551.33,0.00015012,2]
[407749839,1772746946678,200.31,0.00017,120]
[407749840,1772747242128,-174.55390996,0.0001669,2]
[407749841,1772747242152,-933.85775047,0.00016789,2]
[407749842,1772747296405,200.31,0.00017,120]
[407749843,1772747349133,-266.14224953,0.00016789,2]
[407749844,1772747349155,-300.0,0.00016789,2]
[407749845,1772747349176,-300.0,0.00016789,2]
[407749846,1772747349197,-291.0,0.0001679,2]
[407749847,1772747349220,-222.11,0.0001679,2]
[407749848,1772747349240,-189.03928642,0.0001679,2]
[407749849,1772747350077,-60.96071358,0.0001679,2]
[407749850,1772747350098,-174.55390995,0.0001704,2]
[407749851,1772747350119,-222.11,0.0001706,2]
[407749852,1772747350139,-500.0,0.00017196,2]
[407749853,1772747350162,-222.11,0.0001733,2]
[407749854,1772747350185,-174.55390995,0.0001739,2]
[407749855,1772747350206,-364.982847,0.0001749,7]
[407749856,1772747350229,-2833.02767477,0.0001749,2]
[407749860,1772747431625,-861.64940807,0.00017489,2]
[407749861,1772747431638,-314.57995572,0.00017489,2]
[407749862,1772747431649,-23.77063621,0.00017489,2]
[407749863,1772747431658,-300.0,0.00017489,2]
[407749864,1772747431669,-997.81168475,0.00017489,2]
[407749865,1772747431682,-817.79588592,0.00017489,2]
[407749866,1772747431693,-924.05253866,0.00017489,2]
[407749867,1772747431704,-278.617552,0.00017489,2]
[407749868,1772747431716,-1981.72233867,0.00017489,2]
[407749869,1772747431725,-1954.1482943,0.0001749,2]
[407749870,1772747431736,-324.01857318,0.0001749,2]
[407749871,1772747431747,-1885.80247148,0.0001749,2]
[407749872,1772747431768,-3002.99298627,0.0001749,2]
[407749873,1772747431778,-29999.99,0.0001749,2]
[407749874,1772747431787,-4251.67,0.0001749,2]
[407749875,1772747431796,-3699.89,0.0001749,2]
[407749876,1772747431806,-299.99,0.0001749,4]
[407749877,1772747431815,-311.98,0.0001749,2]
[407749879,1772747431824,-9999.99,0.0001749,2]
[407749881,1772747431834,-9999.99,0.0001749,2]
[407749882,1772747431843,-716.48,0.0001749,2]
[407749884,1772747431852,-150.99,0.0001749,2]
[407749886,1772747431861,-222.11,0.000176,2]
[407749888,1772747431871,-1000.0,0.00017727,2]
[407749889,1772747431880,-24720.14,0.00017767,2]
[407749891,1772747431890,-246.58279002,0.00017808,2]
[407749892,1772747431899,-222.11,0.0001787,2]
[407749893,1772747431908,-600.0,0.00018082,7]
[407749894,1772747431919,-2000.0,0.00018082,7]
[407749895,1772747431929,-222.11,0.0001814,2]
[407749896,1772747431939,-166.66,0.0001822,2]
[407749897,1772747431948,-1000.0,0.00018356,7]
[407749898,1772747431959,-177.17,0.00018387,2]
[407749899,1772747431968,-1000.0,0.00018406,2]
[407749900,1772747431978,-222.11,0.0001841,2]
[407749901,1772747431988,-4982.37571224,0.00018468,2]
[407749902,1772747431997,-500.0,0.00018521,2]
[407749903,1772747432007,-153.1,0.00018531,2]
[407749904,1772747432016,-174.61919141,0.00018561,2]
[407749905,1772747432026,-693.3919763,0.00018561,2]
[407749906,1772747432035,-198.56673926,0.00018561,2]
[407749907,1772747432045,-1397.44,0.00018572,2]
[407749908,1772747432054,-719.04747942,0.00018616,2]
[407749909,1772747432064,-745.65223616,0.00018671,2]
[407749910,1772747432083,-222.11,0.0001868,2]
[407749911,1772747432094,-200.0,0.00018683,2]
[407749912,1772747432104,-773.2413689,0.00018726,2]
[407749913,1772747432115,-801.85129955,0.00018781,2]
[407749914,1772747432125,-831.51979763,0.00018836,2]
[407749915,1772747432134,-862.28603014,0.00018891,2]
[407749916,1772747432144,-894.19061326,0.00018946,2]
[407749917,1772747432155,-222.11,0.0001895,2]
[407749918,1772747432165,-500.0,0.00019,5]
[407749919,1772747432174,-927.27566595,0.00019001,2]
[407749920,1772747432184,-1383.077,0.00019036,2]
[407749921,1772747432194,-154.63623529,0.00019036,2]
[407749922,1772747432203,-1397.44,0.00019036,2]
[407749923,1772747432214,-961.58486559,0.00019056,2]
[407749924,1772747432223,-420.0,0.00019092,2]
[407749925,1772747432232,-181.08010149,0.00019109,2]
[407749926,1772747432241,-997.16350561,0.00019111,2]
[407749927,1772747432251,-600.0,0.00019178,7]
[407749928,1772747432260,-2000.0,0.00019178,7]
[407749929,1772747432270,-1680.0,0.00019186,2]
[407749930,1772747432279,-2000.0,0.000192,2]
[407749931,1772747432289,-222.11,0.0001922,2]
[407749932,1772747432298,-166.66,0.00019223,2]
[407749933,1772747432308,-200.0,0.00019227,2]
[407749934,1772747432317,-5000.0,0.00019238,2]
[407749935,1772747432327,-1590.43939683,0.00019261,2]
[407749936,1772747432337,-5495.48525538,0.00019261,2]
[407749937,1772747432347,-640.56834859,0.00019261,2]
[407749938,1772747432356,-163.105,0.00019314,2]
[407749939,1772747432365,-1341.0,0.00019314,2]
[407749940,1772747432375,-619.0,0.00019314,2]
[407749941,1772747432384,-3504.749,0.00019314,2]
[407749942,1772747432393,-1041.0,0.00019314,2]
[407749943,1772747432403,-1298.567,0.00019314,2]
[407749944,1772747432413,-150.217,0.00019314,2]
[407749945,1772747432423,-1216.17,0.00019314,2]
[407749946,1772747432432,-235.52222107,0.00019314,2]
[407749947,1772747432447,-695.55077893,0.00019314,2]
[407749948,1772747432458,-2603.32297084,0.00019314,2]
[407749949,1772747432471,-320.65660765,0.00019314,2]
[407749950,1772747432485,-625.6194234,0.00019314,2]
[407749951,1772747432505,-195.40099811,0.00019314,2]
[407749952,1772747432514,-5989.0,0.00019314,2]
[407749953,1772747432523,-640.56834851,0.00019332,2]
[407749954,1772747432533,-2191.95,0.00019351,2]
[407749955,1772747432542,-788.82039637,0.00019351,2]
[407749956,1772747432554,-1147.18000044,0.00019351,2]
[407749957,1772747432567,-255.94960319,0.00019351,2]
[407749958,1772747432577,-2191.95,0.00019351,2]
[407749959,1772747432591,-2564.95,0.00019351,2]
[407749960,1772747432601,-2564.95,0.00019351,2]
[407749961,1772747432611,-1923.36886458,0.00019352,2]
[407749962,1772747432622,-3572.11639074,0.00019352,2]
[407749963,1772747432634,-155.0,0.0001936,2]
[407749964,1772747432643,-500.0,0.0001936,2]
[407749965,1772747432653,-251.30260429,0.0001936,2]
[407749966,1772747432662,-150.5882304,0.0001936,2]
[407749967,1772747432671,-578.88618272,0.0001936,2]
[407749968,1772747432681,-500.0,0.0001936,2]
[407749969,1772747432690,-500.0,0.0001936,2]
[407749970,1772747432700,-500.0,0.0001936,2]
[407749971,1772747432710,-500.0,0.0001936,2]
[407749972,1772747432719,-192.31877026,0.0001936,2]
[407749973,1772747432730,-307.68122974,0.0001936,2]
[407749974,1772747432741,-313.45636124,0.0001936,2]
[407749975,1772747432752,-186.54363876,0.0001936,2]
[407749976,1772747432762,-477.40965981,0.0001936,2]
[407749977,1772747432773,-22.59034019,0.0001936,2]
[407749978,1772747432783,-500.0,0.0001936,2]
[407749979,1772747432793,-500.0,0.0001936,2]
[407749980,1772747432803,-500.0,0.0001936,2]
[407749981,1772747432813,-500.0,0.0001936,2]
[407749982,1772747432822,-199.87710791,0.0001936,2]
[407749983,1772747432834,-300.12289209,0.0001936,2]
[407749984,1772747432843,-168.93069315,0.0001936,2]
[407749990,1772747437747,-331.06930685,0.0001936,2]
[407749991,1772747437757,-159.31492963,0.0001936,2]
[407749992,1772747437806,-340.68507037,0.0001936,2]
[407749993,1772747437817,-229.04537909,0.0001936,2]
[407749994,1772747437827,-316.07114969,0.0001936,2]
[407749995,1772747437841,-183.92885031,0.0001936,2]
[407749996,1772747437853,-1033.39875024,0.00019361,2]
[407749997,1772747437866,-1490.09544503,0.00019361,2]
[407749998,1772747437880,-410.50580473,0.00019361,2]
[407749999,1772747437892,-1650.09257216,0.00019361,2]
[407750000,1772747437904,-3639.47782332,0.00019361,2]
[407750005,1772747438010,-2079.29381901,0.00019361,2]
[407750013,1772747440390,-432.622,0.00019314,2]
[407750014,1772747440400,-4401.70874672,0.00019361,2]
[407750021,1772747444962,-100659.76252951,0.00019361,2]
[407750022,1772747445094,-313.39967121,0.00019361,2]
[407750023,1772747445108,-318.58422049,0.00019361,2]
[407750029,1772747446005,-1244.55268171,0.00019361,2]
[407750033,1772747446060,-9059.59980664,0.00019361,2]
[407750034,1772747446073,-416.4,0.00019361,2]
[407750035,1772747446106,-149042.92306696,0.00019361,2]
[407750036,1772747446117,-4380.81921875,0.00019361,2]
[407750038,1772747540528,781.98694337,0.00012,2]
[407750042,1772747647639,280.44,0.00017,120]
[407750043,1772747665743,159.35,0.0001472,2]
[407750047,1772748054300,5000.0013645,0.000162,5]
[407750048,1772748075281,5372.14128727,0.0001305,2]
[407750049,1772748129833,1000.0,0.000135,2]
[407750051,1772748549139,-184.86006208,0.00016999,2]
[407750052,1772748549181,-965.51124732,0.00016999,2]
[407750053,1772748558133,-234.48875268,0.00016999,2]
[407750054,1772748558155,-4317.81030257,0.00017,2]
[407750063,1772748631810,-1200.0,0.00016999,2]
[407750064,1772748631821,-50080.66228641,0.00017,2]
[407750065,1772748631830,-152.07545423,0.00017,2]
[407750066,1772748631841,-166.66,0.00017036,2]
[407750067,1772748631850,-19851.56065605,0.0001711,2]
[407750068,1772748631862,-386.10785737,0.0001711,2]
[407750069,1772748631874,-1125.14410807,0.0001711,2]
[407750070,1772748631885,-999.81,0.0001711,2]
[407750071,1772748631897,-781.98694337,0.0001711,2]
[407750072,1772748631926,-794.78937324,0.0001711,2]
[407750073,1772748631955,-405.21062676,0.0001711,2]
[407750076,1772748637813,-1895.51665775,0.0001711,2]
[407750077,1772748637870,-618.76276701,0.0001711,2]
[407750078,1772748637882,-509.35282076,0.0001711,2]
[407750079,1772748637895,-3976.69846394,0.0001711,2]
[407750080,1772748637928,-424.06072804,0.0001711,2]
[407750081,1772748638041,-692.12501114,0.0001711,2]
[407750087,1772748639986,-786.15248583,0.0001711,2]
[407750088,1772748640223,-490.7231731,0.0001711,2]
[407750103,1772748643485,-3489.75361431,0.0001711,2]
[407750104,1772748643496,-5095.29474369,0.0001711,2]
[407750115,1772748645810,-750.70939445,0.0001711,2]
[407750116,1772748645822,-11413.73839652,0.0001711,2]
[407750117,1772748645832,-1109.0,0.00017343,2]
[407750118,1772748645842,-166.66,0.00017395,2]
[407750119,1772748645851,-166.66,0.00017754,2]
[407750120,1772748645860,-376.88153769,0.00017808,2]
[407750121,1772748645870,-200.0,0.00017999,2]
[407750122,1772748645879,-150.0,0.00018,2]
[407750123,1772748645889,-372.62543569,0.00018,2]
[407750124,1772748645900,-1400.0,0.00018082,7]
[407750125,1772748645909,-166.66,0.00018112,2]
[407750126,1772748645918,-817.96,0.00018206,2]
[407750127,1772748645927,-1109.0,0.00018255,2]
[407750128,1772748645940,-327.716743,0.00018297,7]
[407750129,1772748645950,-150.0,0.00018299,2]
[407750130,1772748645959,-500.0,0.00018356,7]
[407750131,1772748645970,-900.0,0.00018356,7]
[407750132,1772748645980,-151.86,0.00018371,2]
[407750133,1772748645992,-442.92107206,0.00018427,2]
[407750134,1772748646005,-500.0,0.00018471,2]
[407750135,1772748646015,-299.99,0.00018471,4]
[407750136,1772748646024,-9999.99,0.00018471,2]
[407750137,1772748646036,-150.99,0.00018471,2]
[407750138,1772748646047,-150.99,0.00018471,2]
[407750139,1772748646057,-9999.99,0.00018471,2]
[407750140,1772748646067,-166.66,0.00018471,2]
[407750141,1772748646076,-175.0,0.00018541,2]
[407750142,1772748646085,-1278.0,0.00018619,2]
[407750144,1772748646096,-1680.0,0.00018659,2]
[407750145,1772748646105,-1212.0,0.00018664,2]
[407750147,1772748646114,-921.0,0.00018664,2]
[407750148,1772748646123,-250.0,0.00018699,2]
[407750149,1772748646136,-3240.0,0.00018705,2]
[407750150,1772748646146,-166.66,0.00018829,2]
[407750152,1772748646156,-2869.30929246,0.00018859,2]
[407750154,1772748646165,-500.0,0.00018959,2]
[407750156,1772748646175,-2869.30929241,0.00018975,2]
[407750157,1772748646185,-5989.0,0.00019014,2]
[407750159,1772748646194,-2459.0,0.00019014,2]
[407750160,1772748646205,-413.0,0.00019014,2]
[407750161,1772748646215,-846.0,0.0001904,2]
[407750162,1772748646226,-480.98,0.00019065,2]
[407750163,1772748646235,-480.98,0.00019065,2]
[407750164,1772748646245,-2869.30929241,0.0001909,2]
[407750165,1772748646255,-4149.81416348,0.00019168,2]
[407750166,1772748646265,-1305.53847851,0.00019173,2]
[407750167,1772748646275,-1400.0,0.00019178,7]
[407750168,1772748646285,-2000.0,0.000192,2]
[407750169,1772748646295,-2869.30929241,0.00019206,2]
[407750170,1772748646305,-4236.4758086,0.00019215,2]
[407750171,1772748646314,-1109.0,0.00019216,2]
[407750172,1772748646324,-500.0,0.00019225,2]
[407750173,1772748646334,-2055.3381,0.0001925,2]
[407750174,1772748646343,-194.92836115,0.00019251,2]
[407750175,1772748646352,-876.78,0.00019251,2]
[407750176,1772748646362,-876.78,0.00019251,2]
[407750177,1772748646372,-876.78,0.00019251,2]
[407750178,1772748646381,-876.78,0.00019251,2]
[407750179,1772748646391,-876.78,0.00019251,2]
[407750180,1772748646400,-1000.0,0.00019251,2]
[407750181,1772748646409,-1305.53847849,0.00019254,2]
[407750182,1772748646419,-1008.35756594,0.0001926,5]
[407750183,1772748646430,-500.0,0.0001926,2]
[407750184,1772748646440,-500.0,0.0001926,2]
[407750185,1772748646449,-500.0,0.0001926,2]
[407750186,1772748646459,-218.48709534,0.0001926,2]
[407750187,1772748646469,-206.84973459,0.0001926,2]
[407750188,1772748646478,-254.4791677,0.0001926,2]
[407750189,1772748646488,-500.0,0.0001926,2]
[407750190,1772748646497,-500.0,0.0001926,2]
[407750191,1772748646507,-500.0,0.0001926,2]
[407750192,1772748646516,-500.0,0.0001926,2]
[407750193,1772748646525,-500.0,0.0001926,2]
[407750194,1772748646535,-297.90453791,0.0001926,2]
[407750195,1772748646545,-156.50651844,0.0001926,2]
[407750196,1772748646554,-500.0,0.0001926,2]
[407750197,1772748646564,-161.94045621,0.0001926,2]
[407750198,1772748646575,-500.0,0.0001926,2]
[407750199,1772748646584,-264.47276717,0.0001926,2]
[407750200,1772748646595,-629.27104303,0.0001926,2]
[407750201,1772748646604,-500.0,0.0001926,2]
[407750202,1772748646614,-500.0,0.0001926,2]
[407750203,1772748646623,-421.01419753,0.0001926,2]
[407750204,1772748646636,-2904.0,0.00019261,2]
[407750205,1772748646647,-166.56194131,0.00019261,2]
[407750206,1772748646656,-151.225,0.00019261,2]
[407750207,1772748646667,-1106.462,0.00019261,2]
[407750208,1772748646676,-1196.68946193,0.00019261,2]
[407750209,1772748646686,-471100.79727879,0.00019261,2]
[407750210,1772748646699,-79370.994,0.00019261,2]
[407750211,1772748646710,-5994.47,0.00019261,2]
[407750212,1772748646722,-552.8612,0.00019261,2]
[407750215,1772749607613,1647.19315441,0.00011344,2]
[407750216,1772749637523,163.2368416,0.00011344,2]
[407750217,1772749644119,500.0,0.00012,2]
[407750218,1772749735941,187.0,0.0001287,2]
[407750219,1772749736797,187.0,0.0001419,2]
[407750220,1772749737631,189.3075695,0.000149,2]
[407750221,1772749753156,-164.88,0.0001679,2]
[407750222,1772749753177,-1420.51608785,0.000169,2]
[407750226,1772749831955,-293.0,0.000169,2]
[407750227,1772749831965,-281.21919417,0.000169,2]
[407750228,1772749831974,-175.5040556,0.0001696,2]
[407750229,1772749831984,-164.88,0.0001706,2]
[407750230,1772749831993,-164.88,0.0001733,2]
[407750231,1772749832003,-300.0,0.00017372,2]
[407750232,1772749832012,-1200.0,0.00017372,2]
[407750233,1772749832022,-1937.52873023,0.00017373,2]
[407750234,1772749832140,-24260.84126977,0.00017373,2]
[407750235,1772749832152,-164.88,0.000176,2]
[407750236,1772749832162,-249.77,0.00017609,2]
[407750237,1772749832172,-3647.09,0.00017634,2]
[407750238,1772749832182,-200.0,0.00017669,2]
[407750239,1772749832191,-499.99,0.00017721,2]
[407750240,1772749832201,-135188.78,0.00017721,2]
[407750241,1772749832210,-150.99,0.00017721,2]
[407750243,1772749832220,-516.39,0.00017721,2]
[407750244,1772749832229,-999.99,0.00017721,2]
[407750245,1772749832238,-500.0,0.00017721,2]
[407750247,1772749832248,-500.0,0.00017721,2]
[407750248,1772749832257,-500.0,0.00017721,2]
[407750249,1772749832267,-500.0,0.00017721,2]
[407750251,1772749832276,-500.0,0.00017721,2]
[407750252,1772749832286,-500.0,0.00017721,2]
[407750253,1772749832297,-500.0,0.00017721,2]
[407750254,1772749832307,-500.0,0.00017721,2]
[407750255,1772749832316,-500.0,0.00017721,2]
[407750256,1772749832325,-500.0,0.00017721,2]
[407750257,1772749832335,-500.0,0.00017721,2]
[407750258,1772749832344,-500.0,0.00017721,2]
[407750259,1772749832359,-500.0,0.00017721,2]
[407750260,1772749832369,-500.0,0.00017721,2]
[407750261,1772749832378,-500.0,0.00017721,2]
[407750262,1772749832387,-500.0,0.00017721,2]
[407750263,1772749832396,-500.0,0.00017721,2]
[407750264,1772749832405,-500.0,0.00017721,2]
[407750265,1772749832415,-575.24939606,0.00017721,2]
[407750266,1772749832425,-500.0,0.00017721,2]
[407750267,1772749832435,-500.0,0.00017721,2]
[407750268,1772749832444,-469.4,0.00017722,2]
[407750269,1772749832453,-1293.43,0.00017722,2]
[407750270,1772749832463,-150.99,0.00017722,2]
[407750271,1772749832473,-9999.99,0.00017722,2]
[407750272,1772749832482,-271.45,0.00017722,2]
[407750273,1772749832491,-9999.99,0.00017722,2]
[407750274,1772749832502,-9999.99,0.00017722,2]
[407750275,1772749832511,-7319.42,0.00017722,2]
[407750276,1772749832520,-9999.99,0.00017722,2]
[407750277,1772749832530,-7581.3,0.00017722,2]
[407750278,1772749832539,-45270.43,0.00017722,2]
[407750279,1772749832548,-299.99,0.00017722,4]
[407750280,1772749832558,-259.58,0.00017722,2]
[407750281,1772749832567,-9999.99,0.00017722,2]
[407750282,1772749832576,-542.58,0.00017773,2]
[407750283,1772749832586,-335.0,0.00017804,2]
[407750284,1772749832596,-500.0,0.0001782,2]
[407750285,1772749832605,-477.0,0.00017834,2]
[407750286,1772749832615,-1988.0,0.00017862,2]
[407750287,1772749832624,-164.88,0.0001787,2]
[407750288,1772749832634,-451.0,0.00017897,2]
[407750289,1772749832643,-469.4,0.00017996,2]
[407750290,1772749832652,-3647.09,0.00018075,2]
[407750291,1772749832661,-1400.0,0.00018082,7]
[407750292,1772749832671,-164.88,0.0001814,2]
[407750293,1772749832680,-70.87765836,0.00018154,2]
[407750294,1772749833390,-159.26234164,0.00018154,2]
[407750295,1772749833721,-241.18765836,0.00018247,2]
[407750296,1772749833733,-258.81234164,0.00018247,2]
[407750297,1772749833742,-226.60615836,0.0001827,2]
[407750298,1772749833828,-242.79384164,0.0001827,2]
[407750299,1772749833838,-500.0,0.00018291,2]
[407750300,1772749833848,-424.20761836,0.00018291,2]
[407750303,1772749838012,-75.79238164,0.00018291,2]
[407750304,1772749838021,-151.0,0.00018291,2]
[407750305,1772749838030,-206.40775106,0.00018291,2]
[407750306,1772749838042,-293.59224894,0.00018291,2]
[407750307,1772749838051,-151.0,0.00018291,2]
[407750308,1772749838060,-71.33942767,0.00018291,2]
[407750309,1772749838072,-325.02024,0.00018291,2]
[407750310,1772749838128,-103.64033233,0.00018291,2]
[407750311,1772749838138,-500.0,0.00018291,2]
[407750312,1772749838147,-3879.66120373,0.00018302,2]
[407750313,1772749838176,-92.95326386,0.00018302,2]
[407750314,1772749838302,-753.25136983,0.00018302,2]
[407750325,1772749840547,-2662.40062146,0.00018302,2]
[407750326,1772749840558,-5341.85,0.00018333,2]
[407750327,1772749840567,-417.19,0.0001835,2]
[407750328,1772749840578,-1000.0,0.00018356,7]
[407750329,1772749840589,-500.0,0.00018356,7]
[407750330,1772749840599,-707.98343181,0.00018397,2]
[407750331,1772749840611,-292.01656819,0.00018397,2]
[407750332,1772749840621,-693.3919763,0.00018397,2]
[407750333,1772749840630,-262.90206542,0.00018397,2]
[407750334,1772749840640,-174.61919141,0.00018397,2]
[407750335,1772749840650,-500.0,0.00018397,2]
[407750336,1772749840659,-315.83417664,0.00018397,2]
[407750337,1772749840669,-164.88,0.0001841,2]
[407750338,1772749840678,-719.04747942,0.00018452,2]
[407750339,1772749840688,-5041.9654989,0.00018469,2]
[407750340,1772749840697,-250.0,0.00018469,2]
[407750341,1772749840707,-745.65223616,0.00018507,2]
[407750342,1772749840717,-3647.09,0.00018516,2]
[407750343,1772749840726,-885.17,0.0001852,2]
[407750344,1772749840735,-469.4,0.00018544,2]
[407750345,1772749840745,-250.0,0.00018558,2]
[407750346,1772749840755,-773.2413689,0.00018562,2]
[407750347,1772749840764,-249.77,0.00018587,2]
[407750348,1772749840774,-801.85129955,0.00018617,2]
[407750349,1772749840783,-831.51979763,0.00018672,2]
[407750350,1772749840792,-164.88,0.0001868,2]
[407750351,1772749840802,-862.28603014,0.00018727,2]
[407750352,1772749840811,-894.19061326,0.00018782,2]
[407750353,1772749840820,-469.42421015,0.00018818,2]
[407750354,1772749840830,-927.27566595,0.00018837,2]
[407750355,1772749840839,-961.58486559,0.00018892,2]
[407750356,1772749840849,-1000.0,0.00018945,2]
[407750357,1772749840858,-272.62944185,0.00018945,2]
[407750358,1772749840867,-181.08010149,0.00018945,2]
[407750359,1772749840877,-500.0,0.00018945,2]
[407750360,1772749840886,-997.16350561,0.00018947,2]
[407750361,1772749840896,-164.88,0.0001895,2]
[407750362,1772749840906,-3103.72684717,0.00018957,2]
[407750363,1772749840918,-543.36315283,0.00018957,2]
[407750364,1772749840927,-3391.81088767,0.00018958,2]
[407750365,1772749840940,-554.53908231,0.00018958,2]
[407750366,1772749840949,-420.0,0.00018967,2]
[407750367,1772749840959,-185.46091769,0.00019058,2]
[407750385,1772749843316,-1572.74528485,0.00019058,2]
[407750386,1772749843326,-1906.1816,0.00019058,2]
[407750387,1772749843336,-2500.0,0.00019058,2]